bitfinex-derivatives/quotes_ETHF0:USTF0_20251009
["timestamp","ask_amount","ask_price","bid_price","bid_amount"]
[1760009943918,1.53206199,4382.8,4382.7,1.13658]
[1760009944110,4.56602549,4382.8,4382.7,1.13658]
[1760009944303,3.82634289,4382.8,4382.7,1.13658]
[1760009944508,4.28366697,4382.8,4382.7,1.13858739]
[1760009944703,4.05466697,4382.8,4382.7,1.13858739]
[1760009944907,4.28366697,4382.8,4382.7,1.13858739]
[1760009945513,3.82896697,4382.8,4382.7,1.13858739]
[1760009945814,4.05796697,4382.8,4382.7,1.13858739]
[1760009946011,4.50246697,4382.8,4382.7,0.85048739]
[1760009946604,13.22059725,4382.8,4382.7,0.00200739]
[1760009946809,4.79399725,4382.8,4382.7,0.43990739]
[1760009947111,4.56829725,4382.8,4382.7,0.72800739]
[1760009947312,3.73636697,4382.8,4382.7,0.72800739]
[1760009948419,3.50736697,4382.8,4382.7,0.72800739]
[1760009948611,3.73636697,4382.8,4382.7,41.52800739]
[1760009948913,0.70240347,4382.8,4382.7,41.52800739]
[1760009949511,3.47e-06,4382.8,4382.7,46.52800739]
[1760009949716,3.47e-06,4382.8,4382.7,41.52800739]
[1760009950307,3.47e-06,4382.8,4382.7,41.75700739]
[1760009950711,3.47e-06,4382.9,4382.8,1.13657]
[1760009951206,3.47e-06,4382.9,4382.8,6.13657]
[1760009951408,3.47e-06,4382.9,4382.8,1.13657]
[1760009951719,0.00248352,4382.9,4382.8,42.16557]
[1760009952013,3.52e-06,4382.9,4382.8,42.16557]
[1760009952811,3.2078,4384.1,4384.0,0.726]
[1760009953016,3.2078,4384.1,4384.0,0.2111]
[1760009953017,3.9739,4384.1,4384.0,0.2111]
[1760009953216,0.5726,4384.0,4383.9,0.41046]
[1760009953511,3.8289127,4384.0,4383.9,0.62156]
[1760009953716,3.8307372,4384.0,4383.9,0.62156]
[1760009954212,3.8307372,4384.0,4383.9,1.13646]
[1760009955113,3.8307372,4384.0,4383.9,0.84836]
[1760009955507,3.8307372,4384.0,4383.9,1.13646]
[1760009956020,3.8307372,4384.0,4383.9,0.84836]
[1760009956219,3.8307372,4384.0,4383.9,0.62156]
[1760009956518,3.8307372,4384.0,4383.9,0.41046]
[1760009957121,8.8307372,4384.0,4383.9,0.41046]
[1760009959223,8.8307372,4384.0,4383.9,0.62156]
[1760009959424,8.8307372,4384.0,4383.9,0.41046]
[1760009961618,3.8307372,4384.0,4383.9,0.62156]
[1760009961823,4.0597372,4384.0,4383.9,0.62156]
[1760009962027,0.3216,4383.3,4383.1,3.2078]
[1760009962220,0.7661,4383.3,4383.2,0.62163]
[1760009962422,0.9951,4383.3,4383.2,0.62163]
[1760009962618,0.2275245,4384.0,4383.9,1.19336]
[1760009963023,0.4565245,4384.0,4383.9,1.19336]
[1760009963223,0.4565245,4384.0,4383.9,41.99336]
[1760009963421,0.2308245,4384.0,4383.9,41.99336]
[1760009963923,3.6523,4384.6,4384.5,0.62151]
[1760009964123,3.8813,4384.6,4384.5,0.96651]
[1760009964426,6.89875753,4384.6,4384.5,0.96651]
[1760009964627,7.22035753,4384.6,4384.5,0.96651]
[1760009965120,6.99345402,4384.6,4384.5,1.19331]
[1760009965326,7.22245402,4384.6,4384.5,1.19331]
[1760009965631,4.01465402,4384.6,4384.5,1.19331]
[1760009965828,4.01465402,4384.6,4384.5,0.41041]
[1760009966526,4.01465402,4384.6,4384.5,1.19331]
[1760009967025,3.78565402,4384.6,4384.5,0.62151]
[1760009967326,4.01465402,4384.6,4384.5,0.41041]
[1760009968420,4.01465402,4384.6,4384.5,0.95481]
[1760009968727,4.01465402,4384.6,4384.5,1.16581]
[1760009969828,4.01465402,4384.6,4384.5,1.29621]
[1760009970332,0.00209649,4384.6,4384.5,1.29621]
[1760009970523,0.23109649,4384.6,4384.5,1.29621]
[1760009971330,0.45669649,4384.6,4384.5,1.29621]
[1760009971530,0.23109649,4384.6,4384.5,1.29621]
[1760009971730,0.4796,4384.5,4384.1,3.61825]
[1760009971932,0.9366,4384.0,4383.9,0.41046]
[1760009972128,1.1656,4384.0,4383.9,0.41046]
[1760009972332,4.17819853,4384.0,4383.9,0.41046]
[1760009972534,4.17819853,4384.0,4383.9,0.63376]
[1760009972731,4.17819853,4384.0,4383.9,0.96706]
[1760009972930,0.4546,4384.0,4383.9,41.97806]
[1760009973125,0.3447,4384.4,4384.3,0.41043]
[1760009973336,1.0307,4384.4,4384.3,1.17803]
[1760009973631,3.20989649,4384.6,4384.5,1.30841]
[1760009975628,0.0058,4385.3,4384.9,1.17797]
[1760009975629,0.2256,4385.0,4384.9,1.17797]
[1760009975833,0.2256,4385.0,4384.9,41.97797]
[1760009976025,3.4334,4385.2,4385.1,1.17795]
[1760009976228,3.7781,4385.2,4385.1,1.17795]
[1760009976427,3.78090197,4385.2,4385.1,1.17795]
[1760009976828,4.01230197,4385.2,4385.1,1.17795]
[1760009977331,7.01392165,4385.2,4385.1,1.17795]
[1760009977528,7.01392165,4385.2,4385.1,0.41035]
[1760009978430,0.57310197,4385.2,4385.1,4.38575]
[1760009978633,0.80450197,4385.2,4385.1,4.38575]
[1760009980231,0.22840197,4385.2,4385.1,4.38575]
[1760009980632,0.80450197,4385.2,4385.1,4.38575]
[1760009981536,0.00280197,4385.2,4385.1,4.38575]
[1760009981838,0.22840197,4385.2,4385.1,4.38575]
[1760009982034,0.57310197,4385.2,4385.1,4.38575]
[1760009982736,0.80450197,4385.2,4385.1,4.38575]
[1760009983740,0.00280197,4385.2,4385.1,4.38575]
[1760009984437,0.77960197,4385.2,4385.1,1.17795]
[1760009984832,3.71338033,4385.2,4385.1,1.17795]
[1760009987841,2.93658033,4385.2,4385.1,1.17795]
[1760009988141,0.00280197,4385.2,4385.1,1.17795]
[1760009988739,0.00280197,4385.2,4385.1,1.40695]
[1760009990548,0.00280197,4385.2,4385.1,1.17795]
[1760009990847,0.00280197,4385.2,4385.1,1.40695]
[1760009991044,0.00280197,4385.2,4385.1,1.17795]
[1760009991243,0.00280197,4385.2,4385.1,1.40695]
[1760009991948,0.00280197,4385.2,4385.1,1.17795]
[1760009992150,0.00280197,4385.2,4385.1,1.40695]
[1760009992349,0.00280197,4385.2,4385.1,0.63115]
[1760009992350,3.74299621,4385.2,4385.1,0.63115]
[1760009992650,3.74299621,4385.2,4385.1,1.17085]
[1760009993754,2.97989621,4385.2,4385.1,1.17085]
[1760009993950,3.19179621,4385.2,4385.1,1.39985]
[1760009994244,3.74299621,4385.2,4385.1,1.17085]
[1760009994452,4.15333621,4385.2,4385.1,1.17085]
[1760009994753,3.74299621,4385.2,4385.1,1.39985]
[1760009995045,3.74299621,4385.2,4385.1,1.17085]
[1760009995251,4.15333621,4385.2,4385.1,1.17085]
[1760009995456,3.74299621,4385.2,4385.1,1.17085]
[1760009995948,2.97989621,4385.2,4385.1,1.39985]
[1760009996247,3.19179621,4385.2,4385.1,1.39985]
[1760009996554,3.74299621,4385.2,4385.1,1.39985]
[1760009996748,3.74299621,4385.2,4385.1,1.17085]
[1760009996947,3.74299621,4385.2,4385.1,1.39985]
[1760009997153,3.74299621,4385.2,4385.1,1.17085]
[1760009997653,2.97989621,4385.2,4385.1,1.39985]
[1760009997953,0.00280197,4385.2,4385.1,1.39985]
[1760009999254,0.00280197,4385.2,4385.1,1.17085]
[1760009999551,1.97e-06,4385.2,4385.1,1.39985]
[1760010001448,0.21310197,4385.2,4385.1,1.17085]
[1760010001656,0.74620197,4385.2,4385.1,1.17085]
[1760010002050,0.74620197,4385.2,4385.1,1.39985]
[1760010002255,1.97e-06,4385.2,4385.1,1.08175]
[1760010004254,1.97e-06,4385.2,4385.1,41.88175]
[1760010004755,0.4273,4386.5,4386.4,0.4373]
[1760010004950,0.4273,4386.5,4386.4,0.7575]
[1760010005146,3.73215493,4386.5,4386.4,0.7575]
[1760010005349,4.10346922,4386.5,4386.4,1.16773]
[1760010005550,4.10629765,4386.5,4386.4,1.17063542]
[1760010005951,4.23939765,4386.5,4386.4,1.17063542]
[1760010006151,4.10629765,4386.5,4386.4,1.17063542]
[1760010006355,4.23939765,4386.5,4386.4,0.62773542]
[1760010006958,4.23939765,4386.5,4386.4,0.94793542]
[1760010007259,4.10629765,4386.5,4386.4,1.17063542]
[1760010008147,3.57319765,4386.5,4386.4,1.17063542]
[1760010008555,0.37414272,4386.5,4386.4,1.17063542]
[1760010008756,2.72e-06,4386.5,4386.4,1.17063542]
[1760010009151,2.72e-06,4386.9,4386.8,1.16769]
[1760010009454,2.72e-06,4386.9,4386.8,1.39669]
[1760010009854,2.72e-06,4386.9,4386.8,42.19669]
[1760010010056,0.00199857,4386.9,4386.8,47.19669]
[1760010010360,3.2078,4388.0,4387.9,0.41009]
[1760010010555,3.4209,4388.0,4387.9,1.16759]
[1760010010756,3.82016028,4388.0,4387.9,0.94489]
[1760010010957,3.68706028,4388.0,4387.9,41.96759]
[1760010011261,0.7462,4388.4,4388.3,1.16755]
[1760010011448,0.74785278,4388.4,4388.3,1.16755]
[1760010011650,3.72842068,4388.4,4388.3,1.16755]
[1760010012050,1.22297007,4390.2,4388.3,1.16755]
[1760010012051,3.2078,4389.1,4389.0,0.75419]
[1760010012262,3.2078,4389.1,4389.0,1.29709]
[1760010012458,3.954,4389.6,4389.5,0.84724]
[1760010012658,3.6351,4389.6,4389.5,1.29704]
[1760010012856,3.4209,4389.6,4389.5,1.29704]
[1760010013059,6.88744079,4389.6,4389.5,0.00244281]
[1760010013360,0.7462,4388.6,4388.5,0.94483]
[1760010013561,0.7462,4388.6,4388.5,1.16753]
[1760010013756,3.64625507,4388.6,4388.5,1.29713]
[1760010013961,3.43205507,4388.6,4388.5,0.8871]
[1760010014263,0.7462,4388.4,4388.3,3.2078]
[1760010014462,0.7462,4388.4,4388.3,3.96783162]
[1760010014658,3.67514584,4388.4,4388.3,3.96783162]
[1760010015458,3.67514584,4388.4,4388.3,0.00253162]
[1760010015763,0.532,4387.2,4387.1,1.16767]
[1760010015958,0.54319,4388.0,4387.1,1.16767]
[1760010015959,0.4273,4387.7,4387.6,1.16762]
[1760010016164,0.229,4387.9,4387.8,0.4101]
[1760010016364,3.41410626,4387.9,4387.8,1.1676]
[1760010016665,3.41410626,4387.9,4387.8,1.17010528]
[1760010016854,3.94720626,4387.9,4387.8,1.17010528]
[1760010017663,8.94720626,4387.9,4387.8,0.00250528]
[1760010018063,12.15500626,4387.9,4387.8,0.00250528]
[1760010020963,0.7462,4387.1,4387.0,3.2078]
[1760010021368,3.65202696,4387.1,4387.0,44.41797]
[1760010022070,3.65202696,4387.1,4387.0,44.74014943]
[1760010022265,3.65202696,4387.1,4387.0,41.53234943]
[1760010025470,3.65202696,4387.1,4387.0,41.66194943]
[1760010025670,3.65202696,4387.1,4387.0,41.53234943]
[1760010026463,3.65202696,4387.1,4386.4,1.02556]
[1760010026464,1.15641,4386.6,4386.4,0.41023]
[1760010026670,0.9752,4386.5,4386.4,1.16773]
[1760010026863,0.9752,4386.5,4385.4,0.3202]
[1760010026864,0.2142,4385.5,4385.4,0.3202]
[1760010027064,0.8793,4385.5,4385.4,1.16782]
[1760010027273,3.81754448,4385.5,4385.4,1.16782]
[1760010027471,3.82019445,4385.5,4385.4,0.85038825]
[1760010027666,3.82019445,4385.5,4385.4,0.41308825]
[1760010027871,3.82019445,4385.5,4385.4,0.62768825]
[1760010028177,3.82019445,4385.5,4385.4,41.97058825]
[1760010030476,3.82019445,4385.5,4385.4,41.24006825]
[1760010030971,3.60709445,4385.5,4384.7,3.2078]
[1760010031174,0.7741,4384.8,4384.7,1.19379]
[1760010031580,0.7741,4384.8,4384.7,41.99379]
[1760010032077,0.7741,4384.8,4384.7,41.99629118]
[1760010032772,0.5603,4384.8,4384.7,41.99629118]
[1760010033078,3.93464215,4384.8,4384.7,41.02200118]
[1760010033281,4.14844215,4384.8,4384.7,0.22200118]
[1760010033877,4.14844215,4384.8,4384.7,0.78590118]
[1760010033878,3.19726215,4384.8,4384.7,0.78590118]
[1760010034074,0.229,4384.9,4384.8,0.85858]
[1760010034274,0.229,4384.9,4384.8,1.19378]
[1760010034470,0.4623,4384.9,4384.8,1.19378]
[1760010035075,0.7893,4384.9,4384.8,1.19378]
[1760010035880,0.4623,4384.9,4384.8,1.19378]
[1760010036580,0.7893,4384.9,4384.8,41.99378]
[1760010037375,0.229,4385.4,4385.3,0.3352]
[1760010037581,0.229,4385.4,4385.3,1.19373]
[1760010037885,3.17136641,4385.4,4385.3,1.19373]
[1760010038584,3.40466641,4385.4,4385.3,1.19373]
[1760010039180,3.73166641,4385.4,4385.3,1.19373]
[1760010043885,4.14198641,4385.4,4385.3,1.19373]
[1760010044389,3.40466641,4385.4,4385.3,1.19373]
[1760010045681,0.00264997,4385.5,4385.4,1.20072]
[1760010045886,1.32245997,4385.5,4385.4,0.4452]
[1760010046081,1.32245997,4385.5,4384.7,3.21030118]
[1760010046082,1.18638,4384.8,4384.7,0.79290118]
[1760010046287,1.41538,4384.8,4384.7,0.44770118]
[1760010046485,4.43179796,4384.8,4384.7,0.79290118]
[1760010046887,4.43179796,4384.8,4384.7,0.44770118]
[1760010047085,4.43179796,4384.8,4384.7,0.00250118]
[1760010050090,4.43179796,4384.8,4384.1,41.21044]
[1760010050091,0.41044,4384.2,4384.1,40.8]
[1760010050396,0.41044,4384.2,4383.6,3.553]
[1760010050397,0.4401,4383.7,4383.6,3.7689]
[1760010050594,0.776,4383.7,4383.6,0.2159]
[1760010050787,3.72516937,4383.7,4383.6,41.0159]
[1760010050987,3.72516937,4383.7,4383.6,40.8]
[1760010050988,6.93296937,4383.7,4383.6,40.8]
[1760010051289,6.93296937,4383.7,4383.6,0.00172341]
[1760010051687,11.93296937,4383.7,4383.6,0.00172341]
[1760010052097,0.63289,4382.6,4382.5,0.9281]
[1760010052296,0.63289,4382.6,4382.5,41.7281]
[1760010052297,0.96879,4382.6,4382.5,41.7281]
[1760010052502,0.63287,4382.8,4382.7,0.4452]
[1760010052703,0.96877,4382.8,4382.7,0.7904]
[1760010053195,1.18657,4382.8,4382.7,0.79257605]
[1760010053384,4.39246957,4382.8,4382.7,0.21807605]
[1760010053587,4.39246957,4382.8,4382.7,0.00217605]
[1760010053996,0.41066,4381.9,4381.5,3.3455]
[1760010054302,1.18666,4381.9,4381.8,0.4452]
[1760010054688,4.14888855,4381.9,4381.8,0.2159]
[1760010054888,0.41067,4381.8,4381.5,0.3452]
[1760010055088,0.776,4381.6,4381.5,0.21787116]
[1760010055299,1.005,4381.6,4381.5,0.21787116]
[1760010055500,3.93039113,4381.6,4381.5,0.21787116]
[1760010055696,0.00218031,4381.8,4381.5,8.79267116]
[1760010055996,0.00218031,4381.8,4381.7,0.7904]
[1760010056195,0.00218031,4381.8,4381.7,1.0194]
[1760010056601,0.00218031,4381.8,4381.7,41.8194]
[1760010058294,0.00218031,4381.8,4381.7,41.5904]
[1760010058491,0.33508031,4381.8,4381.7,41.5904]
[1760010059900,0.00218031,4381.8,4381.7,41.5904]
[1760010060098,0.33508031,4381.8,4381.7,41.5904]
[1760010060296,0.00218031,4381.8,4381.7,46.5904]
[1760010061601,0.00218031,4381.8,4381.7,41.8194]
[1760010061804,0.33508031,4381.8,4381.7,41.8194]
[1760010062302,0.33508031,4381.8,4381.7,41.5904]
[1760010062605,0.33508031,4381.8,4381.7,41.2452]
[1760010063697,3.27703834,4381.8,4381.7,41.0159]
[1760010064500,0.00218031,4381.8,4381.7,41.3627]
[1760010064901,0.33508031,4381.8,4381.7,41.3627]
[1760010066305,3.24191196,4381.8,4381.7,41.0159]
[1760010066809,3.24191196,4381.8,4381.7,41.3627]
[1760010067011,0.33508031,4381.8,4381.7,41.3627]
[1760010067505,0.33508031,4381.8,4381.7,41.77337]
[1760010067695,0.00218031,4381.8,4381.7,41.77337]
[1760010068809,1.02646,4382.7,4381.7,41.77337]
[1760010068810,1.31885,4383.0,4382.9,0.4584]
[1760010069012,1.31885,4383.0,4382.9,0.231]
[1760010069709,1.32119229,4383.0,4382.9,0.231]
[1760010069910,1.32119229,4383.0,4382.9,41.031]
[1760010070103,4.29826587,4383.0,4382.9,41.031]
[1760010071203,3.75421587,4383.0,4382.9,41.3778]
[1760010071400,2.97941587,4383.0,4382.9,41.3778]
[1760010071599,0.00234229,4383.0,4382.9,41.3778]
[1760010073409,0.00234229,4383.0,4382.9,46.3778]
[1760010073611,0.1824,4383.8,4383.7,1.21568]
[1760010073814,0.9572,4383.8,4383.7,0.4584]
[1760010074005,3.95660328,4383.8,4383.7,0.4584]
[1760010074508,3.95949041,4383.8,4383.7,0.4584]
[1760010074708,0.989,4383.5,4383.4,0.231]
[1760010074900,1.3219,4383.5,4383.4,0.231]
[1760010075402,0.7748,4383.5,4383.4,0.8052]
[1760010075602,0.4419,4383.5,4383.0,0.3468]
[1760010075808,0.9114,4383.5,4383.4,0.4584]
[1760010076409,0.7748,4383.5,4383.4,0.8052]
[1760010076608,0.7748,4383.5,4383.3,0.41052]
[1760010076609,0.229,4383.6,4383.5,1.3555]
[1760010077310,0.229,4383.6,4383.5,42.1555]
[1760010079612,0.62666713,4383.8,4383.7,0.86888]
[1760010079812,0.95956713,4383.8,4383.7,1.21568]
[1760010080019,1.18816713,4383.8,4383.7,0.4584]
[1760010080908,0.74339,4383.6,4383.5,40.8]
[1760010081312,1.18533,4383.2,4383.1,4.42354]
[1760010081814,4.10732685,4383.2,4383.1,45.22354]
[1760010082813,1.18569,4383.7,4383.6,0.41049]
[1760010083014,0.229,4383.7,4383.6,1.21569]
[1760010083714,0.229,4383.7,4383.6,42.01569]
[1760010084312,0.00288713,4383.8,4383.7,0.41048]
[1760010084514,0.00288713,4383.8,4383.7,4.42348]
[1760010084917,0.00288713,4383.8,4383.7,45.22348]
[1760010085219,3.2078,4384.7,4384.3,0.41043]
[1760010085521,3.2078,4384.7,4384.6,0.4104]
[1760010085817,0.229,4385.1,4385.0,1.35536]
[1760010086015,0.3329,4385.5,4385.4,0.75712]
[1760010086217,0.0020314,4385.5,4385.4,1.21831227]
[1760010086618,0.0020314,4385.5,4385.4,42.01831227]
[1760010090323,0.4768314,4385.5,4385.4,41.26119227]
[1760010090724,0.3408314,4385.5,4385.4,41.58619227]
[1760010092721,0.4768314,4385.5,4385.4,41.03379227]
[1760010093113,3.4823726,4385.5,4385.4,40.80279227]
[1760010094022,8.9143726,4385.5,4385.4,0.00279227]
[1760010097530,0.7708,4384.4,4384.3,3.4349]
[1760010097733,1.41022,4384.4,4384.3,3.4349]
[1760010097931,1.41022,4384.4,4384.3,44.4466]
[1760010098131,1.41022,4384.4,4384.3,41.2388]
[1760010098331,1.41022,4384.4,4384.3,41.2414844]
[1760010100634,1.41022,4384.4,4384.3,41.5664844]
[1760010100928,1.41022,4384.4,4384.3,41.2414844]
[1760010102925,1.41022,4384.4,4384.3,0.2297844]
[1760010103128,4.40920873,4384.4,4384.3,0.0026844]
[1760010103330,7.61700873,4384.4,4384.3,0.0026844]
[1760010103731,12.61700873,4384.4,4384.3,0.0026844]
[1760010104233,12.7952162,4384.4,4384.3,0.0026844]
[1760010107936,0.41049,4383.6,4383.5,0.325]
[1760010108139,1.40139,4383.6,4383.5,0.2312]
[1760010108535,1.40139,4383.6,4383.5,41.0312]
[1760010109037,1.40139,4383.6,4383.5,41.03397672]
[1760010112237,4.38166755,4383.6,4383.5,40.80277672]
[1760010112743,1.17248,4382.7,4382.6,0.789]
[1760010113041,1.17248,4382.7,4382.6,0.3094]
[1760010113442,1.17248,4382.7,4382.6,0.71999]
[1760010113636,1.17248,4382.7,4382.6,0.3094]
[1760010113839,1.17248,4382.7,4382.6,41.11103723]
[1760010115842,4.14052413,4382.7,4382.6,41.11103723]
[1760010116041,4.14052413,4382.7,4382.6,40.89323723]
[1760010116343,4.36952413,4382.7,4382.6,40.80163723]
[1760010116642,4.36952413,4382.7,4382.2,0.2874]
[1760010116643,0.74031,4382.3,4382.2,0.2874]
[1760010116842,1.40151,4382.3,4382.2,0.2874]
[1760010117043,1.40151,4382.3,4382.2,41.0874]
[1760010117234,1.40151,4382.3,4382.2,40.8]
[1760010117639,1.40394167,4382.3,4382.2,40.80180952]
[1760010119346,0.99333167,4382.3,4382.2,40.80180952]
[1760010119643,0.56113167,4382.3,4382.2,40.89140952]
[1760010119948,0.56113167,4382.3,4382.2,40.80180952]
[1760010122248,0.97174167,4382.3,4382.2,40.80180952]
[1760010124046,0.56113167,4382.3,4382.2,41.21242952]
[1760010124250,0.97174167,4382.3,4382.2,41.30202952]
[1760010124551,0.4671,4383.5,4383.4,0.3764]
[1760010125151,0.6895,4383.5,4383.4,41.0868]
[1760010125348,0.69128855,4383.5,4383.4,41.0868]
[1760010130550,0.69128855,4383.5,4383.4,0.2868]
[1760010131055,0.90588855,4383.5,4383.4,0.2868]
[1760010131753,1.31638855,4383.5,4383.4,0.2868]
[1760010132455,1.31638855,4383.5,4383.4,0.69731]
[1760010132856,1.31638855,4383.5,4383.4,41.0868]
[1760010133156,1.31638855,4383.5,4383.4,41.49731]
[1760010134556,0.90588855,4383.5,4383.4,41.49731]
[1760010135956,1.31638855,4383.5,4383.4,41.0868]
[1760010136159,1.31638855,4383.5,4383.4,40.9434]
[1760010136366,0.437,4382.7,4382.6,1.3547471]
[1760010136661,1.18748,4382.7,4382.6,0.1434]
[1760010136863,1.3258,4382.5,4382.4,3.3512]
[1760010137357,1.3258,4382.5,4382.4,44.1512]
[1760010137562,1.1112,4382.5,4382.4,44.56181]
[1760010137759,1.1112,4382.5,4382.4,44.65141]
[1760010138464,0.4782,4382.5,4382.4,44.65141]
[1760010138665,0.8888,4382.5,4382.4,44.65141]
[1760010139065,0.4782,4382.5,4382.4,44.65141]
[1760010140067,0.4782,4382.5,4382.4,44.56181]
[1760010140972,0.8888,4382.5,4382.4,44.56181]
[1760010141366,0.8888,4382.5,4382.4,45.7731571]
[1760010142175,0.4782,4382.5,4382.4,45.7731571]
[1760010142770,0.8888,4382.5,4382.4,45.3625471]
[1760010143073,0.8888,4382.5,4382.4,41.35401]
[1760010143977,0.4782,4382.5,4382.4,44.56181]
[1760010144177,0.4782,4382.5,4382.4,44.65141]
[1760010144771,0.1825,4382.8,4382.7,0.78698]
[1760010144977,0.75039,4383.7,4383.3,0.69732]
[1760010145273,0.46888855,4383.5,4383.4,0.3764]
[1760010145470,0.46888855,4383.5,4383.4,41.1764]
[1760010146474,0.00178855,4383.5,4383.4,41.4054]
[1760010146775,0.3399,4384.2,4384.1,0.3764]
[1760010147168,0.3399,4384.2,4384.1,0.78685]
[1760010147773,0.34218548,4384.2,4384.1,0.78685]
[1760010147971,0.34218548,4384.2,4384.1,0.2868]
[1760010148165,1.18196,4383.9,4383.8,3.2078]
[1760010148369,3.30608639,4384.2,4384.1,0.3759]
[1760010148565,0.33058548,4384.2,4384.1,0.3759]
[1760010149875,0.54508548,4384.2,4384.1,0.2864]
[1760010150267,0.77378548,4384.2,4384.1,0.2864]
[1760010157078,0.77378548,4384.2,4384.1,0.69685]
[1760010157278,1.18422548,4384.2,4384.1,0.69685]
[1760010157983,0.77378548,4384.2,4384.1,0.69685]
[1760010158680,0.00228548,4384.2,4384.1,0.78635]
[1760010158873,0.33058548,4384.2,4384.1,0.69685]
[1760010159079,0.54508548,4384.2,4384.1,0.69685]
[1760010159280,0.33058548,4384.2,4384.1,0.78635]
[1760010159579,0.33058548,4384.2,4384.1,0.69685]
[1760010159785,0.54508548,4384.2,4384.1,0.69685]
[1760010159979,0.33058548,4384.2,4384.1,0.69685]
[1760010160180,0.33058548,4384.2,4384.1,0.78635]
[1760010161282,0.33058548,4384.2,4384.1,5.78635]
[1760010161283,0.00228548,4384.2,4384.1,5.78635]
[1760010162285,0.00228548,4384.2,4384.1,6.01535]
[1760010162581,0.00228548,4384.2,4384.1,41.81535]
[1760010163382,0.00228548,4384.2,4384.1,41.58635]
[1760010163679,0.00228548,4384.2,4384.1,41.81535]
[1760010170993,0.32038548,4384.2,4384.1,41.81535]
[1760010171885,0.32038548,4384.2,4384.1,41.58635]
[1760010172191,0.32038548,4384.2,4384.1,42.93848785]
[1760010172489,0.32038548,4384.2,4384.1,41.81555]
[1760010172691,0.32038548,4384.2,4384.1,41.49685]
[1760010172894,0.32038548,4384.2,4384.1,42.71004008]
[1760010173087,0.32038548,4384.2,4384.1,42.29959008]
[1760010173283,0.73082548,4384.2,4384.1,41.49685]
[1760010173482,0.32038548,4384.2,4384.1,41.49685]
[1760010173992,0.73082548,4384.2,4384.1,41.49685]
[1760010174386,0.73082548,4384.2,4384.1,42.71004008]
[1760010174984,0.73082548,4384.2,4384.1,41.49685]
[1760010175388,0.73082548,4384.2,4384.1,42.71004008]
[1760010176093,0.73082548,4384.2,4384.1,42.29959008]
[1760010176293,0.73082548,4384.2,4384.1,41.0864]
[1760010176793,0.73082548,4384.2,4384.1,41.49685]
[1760010177096,0.73082548,4384.2,4384.1,41.0864]
[1760010177297,0.73082548,4384.2,4384.1,40.8]
[1760010177484,1.18615,4384.1,4384.0,1.21319008]
[1760010177792,0.7757,4383.7,4383.6,1.21319008]
[1760010177992,0.7757,4383.7,4383.6,40.8]
[1760010178193,3.71357031,4383.7,4383.6,40.8]
[1760010180393,4.12405031,4383.7,4383.6,40.8]
[1760010181897,4.12405031,4383.7,4382.9,1.44219008]
[1760010181898,0.53745,4383.0,4382.9,1.21319008]
[1760010182096,0.7757,4382.8,4382.7,0.1433]
[1760010182296,0.7757,4382.8,4382.7,0.2866]
[1760010182595,0.7757,4382.8,4382.7,41.0866]
[1760010185401,1.18631,4382.4,4382.3,0.1433]
[1760010185702,0.7757,4382.4,4382.3,0.2866]
[1760010185901,0.7757,4382.4,4382.3,41.0866]
[1760010186099,0.7757,4382.4,4382.3,40.9433]
[1760010187806,1.18631,4382.4,4382.3,41.35391]
[1760010188899,0.7757,4382.4,4382.3,41.35391]
[1760010189409,1.18631,4382.4,4382.3,40.9433]
[1760010189608,1.18631,4382.4,4382.3,41.35391]
[1760010189809,0.3348,4382.4,4382.3,41.44341]
[1760010190302,3.61833,4383.2,4383.1,0.78664]
[1760010190500,0.41056,4382.9,4382.8,0.1433]
[1760010190701,0.5514,4382.9,4382.8,0.69717]
[1760010190906,0.3348,4382.9,4382.8,0.69717]
[1760010191209,0.5514,4382.9,4382.8,0.69717]
[1760010195412,0.3348,4382.9,4382.8,0.78667]
[1760010196903,0.3348,4383.1,4382.8,1.02642]
[1760010197104,3.4368,4383.2,4382.8,1.02642]
[1760010197105,0.5638,4383.2,4383.1,0.78664]
[1760010197301,0.1825,4383.4,4383.3,0.78662]
[1760010197506,3.2078,4384.3,4384.1,0.69365]
[1760010198012,0.33708548,4384.2,4384.1,0.69365]
[1760010198409,0.00228548,4384.2,4384.1,0.69365]
[1760010198911,0.00228548,4384.2,4384.1,41.49365]
[1760010200006,0.00228548,4384.2,4384.1,41.72265]
[1760010206113,0.00228548,4384.2,4383.4,1.02626]
[1760010206114,0.77798548,4384.2,4383.4,3.2752]
[1760010206315,2.92629462,4384.2,4383.6,0.1079]
[1760010206507,0.1824,4385.0,4384.6,0.41039]
[1760010206711,0.3348,4385.8,4385.7,0.2084]
[1760010206911,0.3348,4385.8,4385.7,0.2735]
[1760010207113,0.4617,4386.0,4385.9,0.2735]
[1760010207513,3.86113116,4386.0,4385.9,0.21065126]
[1760010208120,3.63683116,4386.0,4385.9,0.21065126]
[1760010210522,0.00291814,4386.0,4385.9,0.27515126]
[1760010210721,0.69171814,4386.0,4385.9,0.21065126]
[1760010211625,0.46341814,4386.0,4385.9,0.21065126]
[1760010211816,0.46341814,4386.0,4385.9,0.27515126]
[1760010212725,0.00291814,4386.0,4385.9,0.27515126]
[1760010212917,0.92011814,4386.0,4385.9,0.00225126]
[1760010213124,0.92011814,4386.0,4385.9,0.10555126]
[1760010213320,0.92011814,4386.0,4385.9,0.20885126]
[1760010217531,0.46341814,4386.0,4385.9,0.20885126]
[1760010217731,0.46341814,4386.0,4385.9,0.27335126]
[1760010218727,0.46341814,4386.0,4385.9,0.20885126]
[1760010218930,0.69171814,4386.0,4385.9,0.20885126]
[1760010221031,0.69171814,4386.0,4385.9,0.61913126]
[1760010221936,0.69171814,4386.0,4385.9,41.41913126]
[1760010222332,0.46341814,4386.0,4385.9,41.48363126]
[1760010222537,0.46341814,4386.0,4385.9,41.41913126]
[1760010225933,0.87368814,4386.0,4385.9,41.41913126]
[1760010226634,0.87368814,4386.0,4385.9,41.00885126]
[1760010226936,3.83032843,4386.0,4385.9,40.90555126]
[1760010227341,4.26502843,4386.0,4385.9,0.00225126]
[1760010228337,4.26502843,4386.0,4385.9,0.10555126]
[1760010229238,4.26502843,4386.0,4385.9,0.51583126]
[1760010230334,4.26502843,4386.0,4385.9,0.61913126]